[Event "Late-Titled-Tuesday-Blitz-February-27-2024"]
[Site "Chess.com"]
[Date "2024.02.27"]
[Round "11"]
[White "Kgutierrez95"]
[Black "Tugrik1969"]
[Result "0-1"]
[WhiteElo "2220"]
[BlackElo "2390"]
[TimeControl "180+1"]
[EndTime "16:06:15 PST"]
[Termination "Tugrik1969 won by resignation"]

1. e4 {[%clk 0:02:53.2]} 1... c5 {[%clk 0:02:59.6]} 2. Nf3 {[%clk 0:02:52.5]}
2... d6 {[%clk 0:03:00]} 3. d4 {[%clk 0:02:52.5]} 3... cxd4 {[%clk 0:03:00.9]}
4. Nxd4 {[%clk 0:02:53.3]} 4... Nf6 {[%clk 0:03:01.5]} 5. Nc3 {[%clk 0:02:53.6]}
5... g6 {[%clk 0:03:02.1]} 6. Be3 {[%clk 0:02:46]} 6... Bg7 {[%clk 0:03:02.6]}
7. f3 {[%clk 0:02:46]} 7... O-O {[%clk 0:03:03.1]} 8. Qd2 {[%clk 0:02:45.4]}
8... Nc6 {[%clk 0:03:02.6]} 9. Bc4 {[%clk 0:02:44.3]} 9... Bd7 {[%clk
0:03:01.6]} 10. Bb3 {[%clk 0:02:43.5]} 10... Rc8 {[%clk 0:02:57.3]} 11. O-O-O
{[%clk 0:02:42.3]} 11... Ne5 {[%clk 0:02:57.4]} 12. Kb1 {[%clk 0:02:41.6]} 12...
Re8 {[%clk 0:02:57.5]} 13. h4 {[%clk 0:02:40.7]} 13... h5 {[%clk 0:02:57.5]} 14.
g4 {[%clk 0:02:40.8]} 14... hxg4 {[%clk 0:02:58.1]} 15. h5 {[%clk 0:02:41.2]}
15... Nxh5 {[%clk 0:02:58.7]} 16. Rdg1 {[%clk 0:02:40.5]} 16... Qa5 {[%clk
0:02:54.3]} 17. Bh6 {[%clk 0:02:35.5]} 17... Bf6 {[%clk 0:02:54.2]} 18. Bg5
{[%clk 0:02:04.4]} 18... Nc4 {[%clk 0:02:38.4]} 19. Bxc4 {[%clk 0:01:55.6]}
19... Bxg5 {[%clk 0:02:38.5]} 20. Qd3 {[%clk 0:01:48.6]} 20... g3 {[%clk
0:02:18.4]} 21. Bb3 {[%clk 0:01:02.4]} 21... Nf4 {[%clk 0:02:11.7]} 22. Qd2
{[%clk 0:00:54.3]} 22... Rxc3 {[%clk 0:01:43.2]} 23. bxc3 {[%clk 0:00:29.2]}
23... Nh3 {[%clk 0:01:29.8]} 24. Qd3 {[%clk 0:00:29]} 24... Nxg1 {[%clk
0:01:26.7]} 25. e5 {[%clk 0:00:29.3]} 25... Qxe5 {[%clk 0:01:13.6]} 26. Qxg6+
{[%clk 0:00:23.2]} 26... Qg7 {[%clk 0:01:13.7]} 27. Bxf7+ {[%clk 0:00:22.8]}
27... Kf8 {[%clk 0:01:14.3]} 28. Bxe8 {[%clk 0:00:16.3]} 28... Qxg6 {[%clk
0:01:01.3]} 29. Bxg6 {[%clk 0:00:17.2]} 29... Nh3 {[%clk 0:01:01.1]} 30. Ne2
{[%clk 0:00:15]} 30... g2 {[%clk 0:00:59.8]} 31. Rd1 {[%clk 0:00:14.7]} 31...
Be3 {[%clk 0:00:55.4]} 32. Be4 {[%clk 0:00:12.5]} 32... b6 {[%clk 0:00:51.8]}
33. c4 {[%clk 0:00:10.9]} 33... Be6 {[%clk 0:00:45.8]} 34. Bd3 {[%clk
0:00:09.4]} 34... Kf7 {[%clk 0:00:41.6]} 35. f4 {[%clk 0:00:08.7]} 35... Bg4
{[%clk 0:00:38.6]} 36. Re1 {[%clk 0:00:01.4]} 36... Bxe2 {[%clk 0:00:37]} 37.
Bxe2 {[%clk 0:00:01.4]} 37... g1=Q {[%clk 0:00:35.3]} 38. Rxg1 {[%clk 0:00:01]}
38... Nxg1 {[%clk 0:00:35.5]} 39. Bd3 {[%clk 0:00:01.7]} 39... Bxf4 {[%clk
0:00:35.4]} 40. Be4 {[%clk 0:00:01.7]} 40... Ne2 {[%clk 0:00:34]} 41. Kb2 {[%clk
0:00:02.6]} 41... Be5+ {[%clk 0:00:32.4]} 42. Kb3 {[%clk 0:00:03.5]} 42... Nc3
{[%clk 0:00:32.8]} 43. Kb4 {[%clk 0:00:04]} 43... Nxe4 {[%clk 0:00:32.5]} 44.
Kb5 {[%clk 0:00:04.9]} 44... Nc3+ {[%clk 0:00:32.7]} 0-1

[Event "Late-Titled-Tuesday-Blitz-February-27-2024"]
[Site "Chess.com"]
[Date "2024.02.27"]
[Round "11"]
[White "SergioMoralesG"]
[Black "kai_nov"]
[Result "0-1"]
[WhiteElo "2508"]
[BlackElo "2360"]
[TimeControl "180+1"]
[EndTime "16:06:16 PST"]
[Termination "kai_nov won by checkmate"]

1. d4 {[%clk 0:02:53.5]} 1... d5 {[%clk 0:02:59.5]} 2. c4 {[%clk 0:02:53.8]}
2... e6 {[%clk 0:02:59.6]} 3. Nf3 {[%clk 0:02:54.4]} 3... c6 {[%clk 0:02:54.4]}
4. Qc2 {[%clk 0:02:53.9]} 4... dxc4 {[%clk 0:02:53.9]} 5. Qxc4 {[%clk
0:02:53.7]} 5... b5 {[%clk 0:02:54.8]} 6. Qc2 {[%clk 0:02:53.2]} 6... Bb7 {[%clk
0:02:55.4]} 7. g3 {[%clk 0:02:52.3]} 7... Nd7 {[%clk 0:02:42.6]} 8. Bg2 {[%clk
0:02:52]} 8... c5 {[%clk 0:02:36.5]} 9. O-O {[%clk 0:02:46.5]} 9... Ngf6 {[%clk
0:02:35]} 10. Rd1 {[%clk 0:02:35.2]} 10... Rc8 {[%clk 0:02:29.7]} 11. Qb3 {[%clk
0:02:32.3]} 11... Qb6 {[%clk 0:02:25.9]} 12. a4 {[%clk 0:02:26.5]} 12... b4
{[%clk 0:02:21.5]} 13. a5 {[%clk 0:02:24.1]} 13... Qb5 {[%clk 0:02:15]} 14. Nc3
{[%clk 0:02:22.8]} 14... Qa6 {[%clk 0:02:08.3]} 15. Na4 {[%clk 0:01:54.6]} 15...
Qxe2 {[%clk 0:01:19.2]} 16. Re1 {[%clk 0:01:31.5]} 16... Qa6 {[%clk 0:01:13.8]}
17. Nxc5 {[%clk 0:00:53.2]} 17... Nxc5 {[%clk 0:01:08.8]} 18. dxc5 {[%clk
0:00:54.1]} 18... Bxc5 {[%clk 0:01:08.5]} 19. Be3 {[%clk 0:00:52.5]} 19... Bd5
{[%clk 0:00:37.2]} 20. Qa4+ {[%clk 0:00:36]} 20... Bc6 {[%clk 0:00:36.9]} 21.
Qb3 {[%clk 0:00:36.3]} 21... Bxe3 {[%clk 0:00:28.8]} 22. Rxe3 {[%clk 0:00:35.7]}
22... Qb7 {[%clk 0:00:28.1]} 23. a6 {[%clk 0:00:33]} 23... Qe7 {[%clk
0:00:23.8]} 24. Rd1 {[%clk 0:00:13.2]} 24... O-O {[%clk 0:00:23.3]} 25. Red3
{[%clk 0:00:13.7]} 25... Bd5 {[%clk 0:00:20.6]} 26. Qa4 {[%clk 0:00:12.8]} 26...
Rfd8 {[%clk 0:00:19.7]} 27. Ne5 {[%clk 0:00:12.4]} 27... Bxg2 {[%clk 0:00:18.1]}
28. Kxg2 {[%clk 0:00:12.4]} 28... Nd5 {[%clk 0:00:16.1]} 29. Qb5 {[%clk
0:00:06.7]} 29... Qc7 {[%clk 0:00:12.1]} 30. Nf3 {[%clk 0:00:03.3]} 30... h6
{[%clk 0:00:11.8]} 31. Rd4 {[%clk 0:00:03.4]} 31... Qc6 {[%clk 0:00:08.9]} 32.
Qa5 {[%clk 0:00:02.3]} 32... Rd6 {[%clk 0:00:07.9]} 33. Ne5 {[%clk 0:00:02.4]}
33... Qxa6 {[%clk 0:00:07.8]} 34. Qxa6 {[%clk 0:00:02]} 34... Rxa6 {[%clk
0:00:08.7]} 35. h4 {[%clk 0:00:01.2]} 35... Rc2 {[%clk 0:00:08.7]} 36. h5 {[%clk
0:00:01.5]} 36... Rxb2 {[%clk 0:00:08.2]} 37. Rc1 {[%clk 0:00:02.2]} 37... Raa2
{[%clk 0:00:07.9]} 38. Rc8+ {[%clk 0:00:02.7]} 38... Kh7 {[%clk 0:00:08.1]} 39.
Ng4 {[%clk 0:00:02.2]} 39... f5 {[%clk 0:00:07.2]} 40. Ne5 {[%clk 0:00:01.6]}
40... Rxf2+ {[%clk 0:00:07.2]} 41. Kg1 {[%clk 0:00:02.5]} 41... Ne3 {[%clk
0:00:06]} 42. Rd5 {[%clk 0:00:02.6]} 42... Rf1# {[%clk 0:00:06.1]} 0-1

[Event "Late-Titled-Tuesday-Blitz-February-27-2024"]
[Site "Chess.com"]
[Date "2024.02.27"]
[Round "11"]
[White "GHANDEEVAM2003"]
[Black "Njal28"]
[Result "1-0"]
[WhiteElo "3072"]
[BlackElo "3045"]
[TimeControl "180+1"]
[EndTime "16:06:19 PST"]
[Termination "GHANDEEVAM2003 won on time"]

1. c4 {[%clk 0:03:00.9]} 1... g6 {[%clk 0:02:57.7]} 2. d4 {[%clk 0:03:00.4]}
2... Bg7 {[%clk 0:02:58.6]} 3. e4 {[%clk 0:03:00.7]} 3... c5 {[%clk 0:02:58.3]}
4. d5 {[%clk 0:03:00.7]} 4... d6 {[%clk 0:02:58.7]} 5. Be2 {[%clk 0:02:59]} 5...
Nf6 {[%clk 0:02:55.2]} 6. Nc3 {[%clk 0:02:58.9]} 6... O-O {[%clk 0:02:55.9]} 7.
Nf3 {[%clk 0:02:58.8]} 7... e6 {[%clk 0:02:56.1]} 8. Be3 {[%clk 0:02:57.6]} 8...
exd5 {[%clk 0:02:54.8]} 9. cxd5 {[%clk 0:02:58.5]} 9... b5 {[%clk 0:02:45.7]}
10. e5 {[%clk 0:02:58]} 10... dxe5 {[%clk 0:02:45]} 11. Bxc5 {[%clk 0:02:55.3]}
11... Re8 {[%clk 0:02:37.4]} 12. Bxb5 {[%clk 0:02:52.1]} 12... Nbd7 {[%clk
0:02:36.5]} 13. Bxd7 {[%clk 0:02:40.8]} 13... Nxd7 {[%clk 0:02:36.7]} 14. Be3
{[%clk 0:02:39.7]} 14... Ba6 {[%clk 0:02:37.2]} 15. a4 {[%clk 0:02:18.5]} 15...
e4 {[%clk 0:02:27.3]} 16. Nd4 {[%clk 0:02:18.9]} 16... Ne5 {[%clk 0:02:25.9]}
17. Nc6 {[%clk 0:02:09.8]} 17... Nd3+ {[%clk 0:00:59.4]} 18. Qxd3 {[%clk
0:02:07.6]} 18... exd3 {[%clk 0:01:00.3]} 19. Nxd8 {[%clk 0:02:06.8]} 19...
Raxd8 {[%clk 0:00:59.9]} 20. Kd2 {[%clk 0:01:51.2]} 20... Bxc3+ {[%clk
0:00:58.3]} 21. bxc3 {[%clk 0:01:52.1]} 21... Rxd5 {[%clk 0:00:58.2]} 22. Rab1
{[%clk 0:01:48]} 22... Rd7 {[%clk 0:00:56]} 23. Rb4 {[%clk 0:01:45.9]} 23... f5
{[%clk 0:00:55]} 24. Rhb1 {[%clk 0:01:44.1]} 24... Kf7 {[%clk 0:00:53.1]} 25. h4
{[%clk 0:01:43.2]} 25... Re6 {[%clk 0:00:49]} 26. R1b3 {[%clk 0:01:39.2]} 26...
Rc6 {[%clk 0:00:42.9]} 27. g3 {[%clk 0:01:35.1]} 27... Re6 {[%clk 0:00:42.5]}
28. c4 {[%clk 0:01:29.7]} 28... Red6 {[%clk 0:00:35.3]} 29. c5 {[%clk 0:01:22]}
29... Re6 {[%clk 0:00:29.6]} 30. Rb8 {[%clk 0:01:17.4]} 30... Re4 {[%clk
0:00:14.5]} 31. c6 {[%clk 0:01:05]} 31... Rc7 {[%clk 0:00:14.7]} 32. R8b7 {[%clk
0:01:05.6]} 32... Ree7 {[%clk 0:00:10.2]} 33. Rxc7 {[%clk 0:01:05.7]} 33... Rxc7
{[%clk 0:00:11.1]} 34. Rc3 {[%clk 0:01:06.4]} 34... Ke6 {[%clk 0:00:09.3]} 35.
Bf4 {[%clk 0:01:06.2]} 35... Re7 {[%clk 0:00:04.8]} 36. Rc5 {[%clk 0:01:02.5]}
36... Re8 {[%clk 0:00:03]} 37. Kc3 {[%clk 0:00:39.3]} 37... Rc8 {[%clk
0:00:02.7]} 38. c7 {[%clk 0:00:36.6]} 38... Kd7 {[%clk 0:00:02.3]} 39. Ra5
{[%clk 0:00:33.7]} 39... Bb7 {[%clk 0:00:02.9]} 40. Kxd3 {[%clk 0:00:27.4]}
40... Be4+ {[%clk 0:00:03.5]} 41. Kd4 {[%clk 0:00:26.8]} 41... Kc6 {[%clk
0:00:04.4]} 42. Re5 {[%clk 0:00:23.1]} 42... Kb7 {[%clk 0:00:02.4]} 43. Rb5+
{[%clk 0:00:21.6]} 43... Kc6 {[%clk 0:00:02.6]} 44. Rb8 {[%clk 0:00:21.9]} 44...
Kd7 {[%clk 0:00:03.3]} 45. a5 {[%clk 0:00:20.7]} 45... a6 {[%clk 0:00:03.5]} 46.
Be5 {[%clk 0:00:19.1]} 46... Bc6 {[%clk 0:00:03.9]} 47. Ke3 {[%clk 0:00:19.1]}
1-0

[Event "Late-Titled-Tuesday-Blitz-February-27-2024"]
[Site "Chess.com"]
[Date "2024.02.27"]
[Round "11"]
[White "DefiantChair"]
[Black "pooh2012"]
[Result "1-0"]
[WhiteElo "2666"]
[BlackElo "2491"]
[TimeControl "180+1"]
[EndTime "16:06:19 PST"]
[Termination "DefiantChair won by resignation"]

1. e4 {[%clk 0:03:00.9]} 1... c6 {[%clk 0:02:55.9]} 2. d4 {[%clk 0:03:00.6]}
2... d5 {[%clk 0:02:55.7]} 3. e5 {[%clk 0:03:01.2]} 3... Bf5 {[%clk 0:02:52.9]}
4. Nf3 {[%clk 0:03:01.3]} 4... e6 {[%clk 0:02:52]} 5. Be2 {[%clk 0:03:01.5]}
5... Nd7 {[%clk 0:02:52.4]} 6. Nbd2 {[%clk 0:02:56.3]} 6... Bg6 {[%clk
0:02:38.1]} 7. O-O {[%clk 0:02:54.9]} 7... Nh6 {[%clk 0:02:38.1]} 8. Nb3 {[%clk
0:02:54]} 8... Nf5 {[%clk 0:02:36.7]} 9. a4 {[%clk 0:02:52.9]} 9... a6 {[%clk
0:02:35.7]} 10. a5 {[%clk 0:02:51.8]} 10... c5 {[%clk 0:02:27.7]} 11. c4 {[%clk
0:02:41.3]} 11... dxc4 {[%clk 0:02:23.3]} 12. Bxc4 {[%clk 0:02:39.9]} 12... cxd4
{[%clk 0:02:21.9]} 13. Nbxd4 {[%clk 0:02:39]} 13... Qc7 {[%clk 0:02:11]} 14. Qa4
{[%clk 0:02:23.8]} 14... Nxd4 {[%clk 0:01:49.2]} 15. Nxd4 {[%clk 0:02:24.7]}
15... Rc8 {[%clk 0:01:45.4]} 16. Bb3 {[%clk 0:02:20.6]} 16... Bc5 {[%clk
0:01:14.9]} 17. Rd1 {[%clk 0:01:38]} 17... O-O {[%clk 0:01:01]} 18. Nxe6 {[%clk
0:01:35]} 18... Bxf2+ {[%clk 0:00:40.7]} 19. Kh1 {[%clk 0:01:28.5]} 19... Nc5
{[%clk 0:00:29]} 20. Nxc7 {[%clk 0:01:14]} 20... Nxa4 {[%clk 0:00:28.8]} 21.
Rxa4 {[%clk 0:01:14.2]} 21... Rxc7 {[%clk 0:00:28.2]} 22. Rf4 {[%clk 0:01:14.5]}
22... Bc5 {[%clk 0:00:25.6]} 23. e6 {[%clk 0:01:09.6]} 23... fxe6 {[%clk
0:00:22.8]} 24. Bxe6+ {[%clk 0:01:10.5]} 24... Bf7 {[%clk 0:00:22.8]} 25. Rxf7
{[%clk 0:01:10.2]} 25... Rfxf7 {[%clk 0:00:22.1]} 26. Bf4 {[%clk 0:01:06.7]}
26... Kf8 {[%clk 0:00:13.2]} 27. Bxf7 {[%clk 0:00:53.7]} 27... Rxf7 {[%clk
0:00:12.7]} 28. Bg3 {[%clk 0:00:53.7]} 28... Ke7 {[%clk 0:00:11.9]} 29. h3
{[%clk 0:00:51.4]} 29... Rf5 {[%clk 0:00:11.5]} 30. Rc1 {[%clk 0:00:49.1]} 30...
Bd6 {[%clk 0:00:10.6]} 31. Re1+ {[%clk 0:00:48.5]} 31... Kd7 {[%clk 0:00:10.6]}
32. Rd1 {[%clk 0:00:48.8]} 32... Rf6 {[%clk 0:00:11.3]} 33. Be5 {[%clk
0:00:48.6]} 33... Rg6 {[%clk 0:00:10.6]} 34. Bc3 {[%clk 0:00:48.7]} 34... Kc6
{[%clk 0:00:10.8]} 35. g4 {[%clk 0:00:48.3]} 35... Bc5 {[%clk 0:00:10.6]} 36.
Kg2 {[%clk 0:00:47.9]} 36... h5 {[%clk 0:00:10.7]} 37. Kg3 {[%clk 0:00:46.5]}
37... hxg4 {[%clk 0:00:11.1]} 38. hxg4 {[%clk 0:00:47.4]} 38... Bd6+ {[%clk
0:00:09.8]} 39. Kh4 {[%clk 0:00:47.5]} 39... Rh6+ {[%clk 0:00:09.9]} 40. Kg5
{[%clk 0:00:47.1]} 40... Be7+ {[%clk 0:00:08.7]} 41. Kf5 {[%clk 0:00:46.9]}
41... Bf6 {[%clk 0:00:07.4]} 42. g5 {[%clk 0:00:46.4]} 42... Rh5 {[%clk
0:00:08]} 43. Bxf6 {[%clk 0:00:46.3]} 43... gxf6 {[%clk 0:00:07.6]} 44. Kxf6
{[%clk 0:00:47.2]} 44... Rh2 {[%clk 0:00:07.8]} 45. g6 {[%clk 0:00:45.8]} 45...
Rf2+ {[%clk 0:00:08.3]} 46. Ke7 {[%clk 0:00:44.8]} 46... Rxb2 {[%clk 0:00:09]}
47. Rg1 {[%clk 0:00:42.6]} 47... Re2+ {[%clk 0:00:07.8]} 48. Kf7 {[%clk
0:00:42]} 48... Rf2+ {[%clk 0:00:08.2]} 49. Kg8 {[%clk 0:00:42]} 49... Kb5
{[%clk 0:00:06.3]} 50. Rg5+ {[%clk 0:00:41.2]} 50... Kb4 {[%clk 0:00:05.5]} 51.
g7 {[%clk 0:00:41.1]} 51... Rf1 {[%clk 0:00:04.5]} 52. Kh7 {[%clk 0:00:41]}
52... Rh1+ {[%clk 0:00:04.7]} 53. Kg6 {[%clk 0:00:41.4]} 1-0

[Event "Late-Titled-Tuesday-Blitz-February-27-2024"]
[Site "Chess.com"]
[Date "2024.02.27"]
[Round "11"]
[White "WPWPWP-2015"]
[Black "Unkreativ3"]
[Result "1/2-1/2"]
[WhiteElo "2452"]
[BlackElo "2589"]
[TimeControl "180+1"]
[EndTime "16:06:22 PST"]
[Termination "Game drawn by repetition"]

1. e4 {[%clk 0:03:00.9]} 1... c6 {[%clk 0:02:59.4]} 2. d4 {[%clk 0:02:58.8]}
2... d5 {[%clk 0:02:59.8]} 3. Nc3 {[%clk 0:02:55.8]} 3... dxe4 {[%clk
0:02:58.1]} 4. Nxe4 {[%clk 0:02:55.8]} 4... Bf5 {[%clk 0:02:58.4]} 5. Ng3 {[%clk
0:02:55.4]} 5... Bg6 {[%clk 0:02:58.8]} 6. h4 {[%clk 0:02:55.1]} 6... h6 {[%clk
0:02:57.4]} 7. N1e2 {[%clk 0:02:55.3]} 7... Nf6 {[%clk 0:02:54.5]} 8. Nf4 {[%clk
0:02:55.1]} 8... Bh7 {[%clk 0:02:54.9]} 9. Bc4 {[%clk 0:02:52]} 9... e6 {[%clk
0:02:54.3]} 10. Qe2 {[%clk 0:02:44]} 10... Nd5 {[%clk 0:02:52.8]} 11. Ngh5
{[%clk 0:02:36.1]} 11... g6 {[%clk 0:02:41.4]} 12. Ng3 {[%clk 0:02:33]} 12...
Be7 {[%clk 0:02:38.5]} 13. h5 {[%clk 0:02:08.7]} 13... g5 {[%clk 0:02:34.1]} 14.
Nd3 {[%clk 0:02:03.9]} 14... Nd7 {[%clk 0:02:27.9]} 15. Bd2 {[%clk 0:01:59.9]}
15... b5 {[%clk 0:02:22.5]} 16. Bb3 {[%clk 0:01:59.2]} 16... a5 {[%clk
0:02:21.5]} 17. a3 {[%clk 0:01:56.9]} 17... N7f6 {[%clk 0:02:11.6]} 18. Ne5
{[%clk 0:01:52]} 18... Nf4 {[%clk 0:02:02.3]} 19. Qf3 {[%clk 0:01:40]} 19...
N6d5 {[%clk 0:01:53.2]} 20. Nxc6 {[%clk 0:01:35.2]} 20... Qc7 {[%clk 0:01:48.1]}
21. Nxe7 {[%clk 0:01:33.4]} 21... Kxe7 {[%clk 0:01:44.9]} 22. O-O {[%clk
0:01:16.4]} 22... a4 {[%clk 0:01:37.3]} 23. Ba2 {[%clk 0:01:10.6]} 23... Qxc2
{[%clk 0:01:33.1]} 24. Bxf4 {[%clk 0:01:03.8]} 24... gxf4 {[%clk 0:01:30.2]} 25.
Bxd5 {[%clk 0:00:59.1]} 25... exd5 {[%clk 0:01:23]} 26. Rfe1+ {[%clk 0:00:57.3]}
26... Be4 {[%clk 0:01:12.7]} 27. Nxe4 {[%clk 0:00:29.6]} 27... dxe4 {[%clk
0:01:07.5]} 28. Rxe4+ {[%clk 0:00:29.3]} 28... Kf8 {[%clk 0:01:03.6]} 29. Re2
{[%clk 0:00:23.1]} 29... Qc8 {[%clk 0:01:03.3]} 30. Qxf4 {[%clk 0:00:20.3]}
30... Ra6 {[%clk 0:01:01.3]} 31. Rae1 {[%clk 0:00:19.8]} 31... Qc6 {[%clk
0:00:43]} 32. Re8+ {[%clk 0:00:18]} 32... Kg7 {[%clk 0:00:41.6]} 33. Qe5+ {[%clk
0:00:14.4]} 33... Qf6 {[%clk 0:00:41.1]} 34. Qg3+ {[%clk 0:00:13.9]} 34... Qg5
{[%clk 0:00:37.2]} 35. Qb8 {[%clk 0:00:09.1]} 35... Rxe8 {[%clk 0:00:33.3]} 36.
Rxe8 {[%clk 0:00:08.8]} 36... Qxh5 {[%clk 0:00:17.4]} 37. Rg8+ {[%clk
0:00:08.5]} 37... Kh7 {[%clk 0:00:18]} 38. Rh8+ {[%clk 0:00:08.3]} 38... Kg6
{[%clk 0:00:18.7]} 39. Qg8+ {[%clk 0:00:06.4]} 39... Kf6 {[%clk 0:00:16]} 40.
Qd8+ {[%clk 0:00:05.5]} 40... Kg6 {[%clk 0:00:14.2]} 41. Rg8+ {[%clk 0:00:05.4]}
41... Kh7 {[%clk 0:00:14]} 42. Rh8+ {[%clk 0:00:05.3]} 42... Kg6 {[%clk
0:00:14.2]} 43. Rg8+ {[%clk 0:00:03.1]} 43... Kh7 {[%clk 0:00:14.6]} 44. Qf8
{[%clk 0:00:02.9]} 44... Qd1+ {[%clk 0:00:12.5]} 45. Kh2 {[%clk 0:00:02.6]}
45... Qh5+ {[%clk 0:00:13.4]} 46. Kg1 {[%clk 0:00:02.9]} 46... Qd1+ {[%clk
0:00:13]} 47. Kh2 {[%clk 0:00:03.4]} 47... Qh5+ {[%clk 0:00:13.4]} 48. Kg1
{[%clk 0:00:02.1]} 1/2-1/2

[Event "Late-Titled-Tuesday-Blitz-February-27-2024"]
[Site "Chess.com"]
[Date "2024.02.27"]
[Round "11"]
[White "Nemsko"]
[Black "GlavkonVVS"]
[Result "0-1"]
[WhiteElo "2410"]
[BlackElo "2529"]
[TimeControl "180+1"]
[EndTime "16:06:22 PST"]
[Termination "GlavkonVVS won by resignation"]

1. e4 {[%clk 0:03:00.9]} 1... Nf6 {[%clk 0:02:59.7]} 2. e5 {[%clk 0:02:59.2]}
2... Nd5 {[%clk 0:02:59.5]} 3. d4 {[%clk 0:02:59.1]} 3... d6 {[%clk 0:02:59.7]}
4. c4 {[%clk 0:02:59.1]} 4... Nb6 {[%clk 0:02:59.7]} 5. exd6 {[%clk 0:02:59.6]}
5... cxd6 {[%clk 0:02:59.8]} 6. h3 {[%clk 0:02:59.4]} 6... g6 {[%clk 0:02:59.9]}
7. Nf3 {[%clk 0:02:57.9]} 7... Bg7 {[%clk 0:03:00.1]} 8. Be3 {[%clk 0:02:57.9]}
8... O-O {[%clk 0:03:00.2]} 9. Nc3 {[%clk 0:02:55.7]} 9... Nc6 {[%clk
0:02:57.2]} 10. Be2 {[%clk 0:02:44.9]} 10... e5 {[%clk 0:02:57.2]} 11. O-O
{[%clk 0:02:42.1]} 11... h6 {[%clk 0:02:50.9]} 12. Qd2 {[%clk 0:02:40]} 12...
Kh7 {[%clk 0:02:50.5]} 13. Rad1 {[%clk 0:02:35.3]} 13... Bf5 {[%clk 0:02:41.1]}
14. d5 {[%clk 0:02:23.2]} 14... Ne7 {[%clk 0:02:40.2]} 15. c5 {[%clk 0:02:20.2]}
15... Nbc8 {[%clk 0:02:33.5]} 16. Nb5 {[%clk 0:02:05.8]} 16... a6 {[%clk
0:02:31.4]} 17. cxd6 {[%clk 0:01:45.9]} 17... Nxd6 {[%clk 0:02:30.3]} 18. Nxd6
{[%clk 0:01:33.8]} 18... Qxd6 {[%clk 0:02:30.2]} 19. Qa5 {[%clk 0:01:25.9]}
19... Rfc8 {[%clk 0:02:29.3]} 20. b4 {[%clk 0:01:20.6]} 20... Bc2 {[%clk
0:02:03.8]} 21. Bc5 {[%clk 0:01:13.3]} 21... Qd7 {[%clk 0:01:59.8]} 22. Rd2
{[%clk 0:01:09.8]} 22... Be4 {[%clk 0:01:57.2]} 23. Bxe7 {[%clk 0:00:48.5]}
23... Qxe7 {[%clk 0:01:56.7]} 24. d6 {[%clk 0:00:48.7]} 24... Qd7 {[%clk
0:01:50.1]} 25. Nxe5 {[%clk 0:00:47.9]} 25... Qe6 {[%clk 0:01:37.4]} 26. f4
{[%clk 0:00:27.5]} 26... b5 {[%clk 0:01:23.9]} 27. Qb6 {[%clk 0:00:16]} 27...
Rd8 {[%clk 0:01:08.9]} 28. Rfd1 {[%clk 0:00:15.3]} 28... Bf8 {[%clk 0:01:03.3]}
29. Bg4 {[%clk 0:00:13.7]} 29... f5 {[%clk 0:00:56.8]} 30. Qc7+ {[%clk
0:00:13.4]} 30... Kg8 {[%clk 0:00:53.5]} 31. Bf3 {[%clk 0:00:04.4]} 31... Bxf3
{[%clk 0:00:53]} 32. Nxf3 {[%clk 0:00:05.3]} 32... Rd7 {[%clk 0:00:52.1]} 33.
Qc6 {[%clk 0:00:01.9]} 33... Rad8 {[%clk 0:00:51.7]} 34. Ne5 {[%clk 0:00:01.6]}
34... Rxd6 {[%clk 0:00:51.4]} 35. Rxd6 {[%clk 0:00:02.3]} 35... Rxd6 {[%clk
0:00:51.5]} 36. Rxd6 {[%clk 0:00:01.5]} 36... Qxd6 {[%clk 0:00:51.8]} 37. Qxd6
{[%clk 0:00:01.9]} 37... Bxd6 {[%clk 0:00:51.8]} 38. Nd3 {[%clk 0:00:02.2]}
38... Kf7 {[%clk 0:00:51.3]} 39. Kf2 {[%clk 0:00:02.8]} 39... Ke6 {[%clk
0:00:51.6]} 40. Ke3 {[%clk 0:00:03.7]} 40... Kd5 {[%clk 0:00:51.9]} 41. g4
{[%clk 0:00:02.6]} 41... fxg4 {[%clk 0:00:50.2]} 42. hxg4 {[%clk 0:00:03.5]}
42... h5 {[%clk 0:00:50.6]} 43. gxh5 {[%clk 0:00:03.2]} 43... gxh5 {[%clk
0:00:50.6]} 44. Kf3 {[%clk 0:00:03.9]} 44... Kd4 {[%clk 0:00:50.3]} 45. Nf2
{[%clk 0:00:02.1]} 45... Bxb4 {[%clk 0:00:49.5]} 46. Ne4 {[%clk 0:00:02.2]}
46... Be7 {[%clk 0:00:48.3]} 47. Ng3 {[%clk 0:00:02]} 47... Kc3 {[%clk
0:00:43.7]} 48. Nxh5 {[%clk 0:00:01.9]} 48... Kb2 {[%clk 0:00:43.6]} 49. Ke4
{[%clk 0:00:02]} 49... Kxa2 {[%clk 0:00:43.6]} 50. Ng3 {[%clk 0:00:02]} 50... b4
{[%clk 0:00:43.7]} 51. Nf5 {[%clk 0:00:02.9]} 51... Bf8 {[%clk 0:00:43.7]} 52.
Ne3 {[%clk 0:00:01.8]} 52... b3 {[%clk 0:00:43.5]} 53. Nd1 {[%clk 0:00:02.5]}
53... a5 {[%clk 0:00:42.2]} 54. Kd3 {[%clk 0:00:02.4]} 54... a4 {[%clk
0:00:42.5]} 55. Nc3+ {[%clk 0:00:02.8]} 55... Ka3 {[%clk 0:00:41.9]} 56. Nb5+
{[%clk 0:00:03.3]} 56... Kb4 {[%clk 0:00:42.1]} 57. Nd4 {[%clk 0:00:02.3]} 57...
Bg7 {[%clk 0:00:40.9]} 58. Ne6 {[%clk 0:00:03.2]} 58... Bf6 {[%clk 0:00:40.6]}
59. Kd2 {[%clk 0:00:02.6]} 59... a3 {[%clk 0:00:40.6]} 60. Kc1 {[%clk
0:00:02.6]} 60... a2 {[%clk 0:00:40.7]} 0-1